fUSD/lending_fUSD_20260203
["ID","MTS","AMOUNT","RATE_DAILY","PERIOD"]
[404400136,1770106242603,-401.0,0.00015713,2]
[404400137,1770106242612,-150.01391884,0.00015822,2]
[404400138,1770106242624,-10239.77,0.00015878,2]
[404400139,1770106242633,-500.0,0.00015896,2]
[404400140,1770106242643,-5000.0,0.0001596,2]
[404400141,1770106242652,-256.701042,0.00016,2]
[404400142,1770106242661,-1500.0,0.00016,2]
[404400143,1770106242671,-401.0,0.00016055,2]
[404400144,1770106242680,-4438.32,0.00016116,2]
[404400145,1770106242689,-1000.0,0.0001613,7]
[404400146,1770106242699,-215.54423282,0.00016191,2]
[404400147,1770106242709,-558.31479011,0.00016437,2]
[404400148,1770106242719,-1911.41410949,0.00016438,2]
[404400149,1770106242728,-500.0,0.00016438,2]
[404400152,1770106242738,-500.0,0.00016438,2]
[404400154,1770106242747,-330.22332732,0.00016438,2]
[404400156,1770106242756,-500.0,0.00016438,2]
[404400157,1770106242765,-964.34041859,0.00016438,2]
[404400158,1770106242775,-964.34041859,0.00016438,2]
[404400159,1770106242784,-964.34041859,0.00016438,2]
[404400160,1770106242793,-964.34041859,0.00016438,2]
[404400162,1770106242803,-964.34041859,0.00016438,2]
[404400163,1770106242812,-964.34041859,0.00016438,2]
[404400164,1770106242822,-964.34041859,0.00016438,2]
[404400165,1770106242832,-964.34041859,0.00016438,2]
[404400166,1770106242842,-964.34041859,0.00016438,2]
[404400167,1770106242852,-964.34041859,0.00016438,2]
[404400168,1770106242861,-964.34041859,0.00016438,2]
[404400169,1770106242870,-964.34041859,0.00016438,2]
[404400170,1770106242879,-964.34041859,0.00016438,2]
[404400171,1770106242889,-964.34041859,0.00016438,2]
[404400172,1770106242899,-964.34041859,0.00016438,2]
[404400173,1770106242908,-964.34041859,0.00016438,2]
[404400174,1770106242917,-964.34041859,0.00016438,2]
[404400175,1770106242927,-964.34041859,0.00016438,2]
[404400176,1770106242936,-964.34041859,0.00016438,2]
[404400177,1770106242945,-964.34041859,0.00016438,2]
[404400178,1770106242955,-964.34041859,0.00016438,2]
[404400179,1770106242964,-964.34041859,0.00016438,2]
[404400180,1770106242973,-964.34041859,0.00016438,2]
[404400181,1770106242982,-964.34041859,0.00016438,2]
[404400182,1770106242991,-964.34041859,0.00016438,2]
[404400183,1770106243001,-964.34041859,0.00016438,2]
[404400184,1770106243011,-964.34041859,0.00016438,2]
[404400185,1770106243020,-964.34041859,0.00016438,2]
[404400186,1770106243029,-964.34041859,0.00016438,2]
[404400187,1770106243039,-964.34041859,0.00016438,2]
[404400188,1770106243048,-964.34041859,0.00016438,2]
[404400189,1770106243058,-964.34041859,0.00016438,2]
[404400190,1770106243067,-964.34041859,0.00016438,2]
[404400191,1770106243076,-964.34041859,0.00016438,2]
[404400192,1770106243086,-964.34041859,0.00016438,2]
[404400193,1770106243095,-775.48,0.00016438,2]
[404400194,1770106243105,-3194.98423036,0.00016438,2]
[404400195,1770106243114,-3194.98423036,0.00016438,2]
[404400196,1770106243123,-3194.98423036,0.00016438,2]
[404400197,1770106243133,-3194.98423036,0.00016438,2]
[404400198,1770106243143,-3194.98423036,0.00016438,2]
[404400199,1770106243152,-3194.98423036,0.00016438,2]
[404400200,1770106243162,-3194.98423036,0.00016438,2]
[404400201,1770106243171,-3194.98423036,0.00016438,2]
[404400202,1770106243180,-3194.98423036,0.00016438,2]
[404400203,1770106243189,-3194.98423036,0.00016438,2]
[404400204,1770106243199,-3194.98423036,0.00016438,2]
[404400205,1770106243208,-3194.98423036,0.00016438,2]
[404400206,1770106243218,-3194.98423036,0.00016438,2]
[404400207,1770106243227,-3194.98423036,0.00016438,2]
[404400208,1770106243237,-3194.98423036,0.00016438,2]
[404400209,1770106243247,-3194.98423036,0.00016438,2]
[404400210,1770106243256,-3194.98423036,0.00016438,2]
[404400211,1770106243265,-3194.98423036,0.00016438,2]
[404400212,1770106243275,-3194.98423036,0.00016438,2]
[404400213,1770106243285,-3194.98423036,0.00016438,2]
[404400214,1770106243294,-3194.98423036,0.00016438,2]
[404400215,1770106243303,-3194.98423036,0.00016438,2]
[404400216,1770106243313,-3194.98423036,0.00016438,2]
[404400217,1770106243545,-3194.98423036,0.00016438,2]
[404400218,1770106243589,-3194.98423036,0.00016438,2]
[404400219,1770106243600,-3194.98423036,0.00016438,2]
[404400220,1770106243611,-3194.98423036,0.00016438,2]
[404400221,1770106243621,-3194.98423036,0.00016438,2]
[404400222,1770106243630,-3163.03438805,0.00016438,2]
[404400223,1770106243639,-3163.03438805,0.00016438,2]
[404400224,1770106243650,-3163.03438805,0.00016438,2]
[404400225,1770106243661,-3163.03438805,0.00016438,2]
[404400226,1770106243671,-3163.03438805,0.00016438,2]
[404400227,1770106243681,-3163.03438805,0.00016438,2]
[404400228,1770106243691,-3163.03438805,0.00016438,2]
[404400229,1770106243703,-3163.03438805,0.00016438,2]
[404400230,1770106243713,-3163.03438805,0.00016438,2]
[404400231,1770106243723,-3163.03438805,0.00016438,2]
[404400232,1770106243733,-3163.03438805,0.00016438,2]
[404400233,1770106243743,-3163.03438805,0.00016438,2]
[404400234,1770106243752,-3163.03438805,0.00016438,2]
[404400235,1770106243762,-3163.03438805,0.00016438,2]
[404400236,1770106243774,-3163.03438805,0.00016438,2]
[404400237,1770106243784,-3163.03438805,0.00016438,2]
[404400238,1770106243795,-3163.03438805,0.00016438,2]
[404400239,1770106243806,-3163.03438805,0.00016438,2]
[404400240,1770106243817,-3163.03438805,0.00016438,2]
[404400241,1770106243827,-3163.03438805,0.00016438,2]
[404400242,1770106243837,-3163.03438805,0.00016438,2]
[404400243,1770106243848,-3163.03438805,0.00016438,2]
[404400244,1770106243859,-3163.03438805,0.00016438,2]
[404400245,1770106243871,-3690.20678602,0.00016438,2]
[404400246,1770106243880,-3690.20678602,0.00016438,2]
[404400247,1770106243891,-200.0,0.00016438,2]
[404400248,1770106243901,-401.0,0.00016485,2]
[404400249,1770106243910,-471.47764088,0.0001652,2]
[404400250,1770106243919,-1084.09055279,0.0001652,2]
[404400251,1770106243928,-64562.46346341,0.00016539,2]
[404400252,1770106243937,-200.05997466,0.00016546,2]
[404400253,1770106243948,-6042.35870632,0.00016561,2]
[404400254,1770106243958,-401.0,0.00016601,2]
[404400255,1770106243967,-947.0,0.00016621,2]
[404400256,1770106243976,-180.29,0.00016678,2]
[404400257,1770106243986,-464.55,0.00016906,2]
[404400258,1770106243995,-200.0,0.00016983,2]
[404400259,1770106244004,-1500.0,0.00017,2]
[404400260,1770106244014,-300.0,0.00017,2]
[404400261,1770106244024,-535.99630296,0.00017025,2]
[404400262,1770106244033,-500.0,0.00017072,2]
[404400263,1770106244043,-2236.8456,0.00017164,2]
[404400264,1770106244052,-1000.0,0.0001726,2]
[404400265,1770106244061,-200.0,0.00017282,2]
[404400266,1770106244071,-365.32838041,0.00017329,2]
[404400267,1770106244080,-150.0,0.00017358,2]
[404400268,1770106244089,-165.44,0.00017358,2]
[404400270,1770106244099,-150.0,0.00017358,2]
[404400271,1770106244108,-150.0,0.00017358,2]
[404400272,1770106244116,-150.0,0.00017358,2]
[404400273,1770106244126,-150.0,0.00017358,2]
[404400274,1770106244135,-150.81,0.00017358,2]
[404400275,1770106244144,-150.0,0.00017358,2]
[404400276,1770106244154,-150.0,0.00017358,2]
[404400277,1770106244164,-150.0,0.00017358,2]
[404400278,1770106244173,-150.0,0.00017358,2]
[404400279,1770106244182,-403.41,0.00017358,2]
[404400280,1770106244191,-160.03,0.00017358,2]
[404400281,1770106244200,-150.0,0.00017358,2]
[404400282,1770106244210,-171.29,0.00017381,2]
[404400283,1770106244220,-180.29,0.00017381,2]
[404400284,1770106244229,-180.29,0.00017381,2]
[404400285,1770106244238,-200.0,0.00017389,2]
[404400286,1770106244248,-5888.0,0.00017412,2]
[404400287,1770106244259,-401.0,0.00017443,2]
[404400288,1770106244268,-5888.0,0.00017486,2]
[404400289,1770106244279,-1500.0,0.000175,2]
[404400290,1770106244289,-1000.0,0.00017534,2]
[404400291,1770106244298,-64562.46346341,0.0001754,2]
[404400292,1770106244307,-25837.1765527,0.0001761,2]
[404400293,1770106244318,-587.8745622,0.0001764,2]
[404400294,1770106244328,-200.0,0.00017646,2]
[404400295,1770106244337,-5888.0,0.00017716,2]
[404400296,1770106244347,-200.0,0.00017719,2]
[404400297,1770106244357,-150.0,0.00017729,2]
[404400298,1770106244367,-1000.0,0.0001773,2]
[404400299,1770106244376,-1271.0,0.00017733,2]
[404400300,1770106244388,-150.0,0.00017733,2]
[404400301,1770106244398,-1205.0,0.00017747,2]
[404400302,1770106244408,-917.0,0.00017747,2]
[404400303,1770106244417,-1316.0,0.00017747,2]
[404400304,1770106244427,-2471.026,0.00017747,2]
[404400305,1770106244436,-6580.0,0.00017747,2]
[404400306,1770106244446,-3253.0,0.00017747,2]
[404400307,1770106244456,-150.0,0.00017747,2]
[404400308,1770106244469,-983.42551089,0.0001775,2]
[404400309,1770106244478,-1000.0,0.00017753,2]
[404400310,1770106244488,-1000.0,0.00017754,2]
[404400311,1770106244498,-150.0,0.00017759,7]
[404400312,1770106244507,-374.613885,0.00017759,7]
[404400313,1770106244517,-599.227771,0.00017759,7]
[404400314,1770106244526,-823.841657,0.00017759,7]
[404400315,1770106244535,-1048.455543,0.00017759,7]
[404400316,1770106244545,-1273.069429,0.00017759,7]
[404400317,1770106244554,-1497.683314,0.00017759,7]
[404400318,1770106244564,-1722.2972,0.00017759,7]
[404400319,1770106244574,-1946.911086,0.00017759,7]
[404400320,1770106244583,-2171.524972,0.00017759,7]
[404400321,1770106244592,-1000.0,0.00017768,2]
[404400322,1770106244601,-150.0,0.00017799,2]
[404400323,1770106244610,-160.0,0.000178,7]
[404400324,1770106244620,-150.0,0.00017801,2]
[404400325,1770106244629,-250.0,0.00017808,20]
[404400326,1770106244638,-285.815377,0.00017808,20]
[404400327,1770106244648,-1000.0,0.00017808,2]
[404400328,1770106244657,-1000.0,0.00017809,2]
[404400329,1770106244667,-1000.0,0.00017813,2]
[404400330,1770106244676,-1000.0,0.00017815,2]
[404400331,1770106244685,-1000.0,0.00017816,2]
[404400332,1770106244695,-2000.0,0.0001782,2]
[404400333,1770106244704,-2000.0,0.0001782,2]
[404400334,1770106244713,-150.0,0.00017821,2]
[404400335,1770106244722,-1000.0,0.00017824,2]
[404400336,1770106244731,-1000.0,0.00017834,2]
[404400337,1770106244741,-150.0,0.00017835,2]
[404400338,1770106244750,-1000.0,0.00017838,2]
[404400339,1770106244759,-1000.0,0.00017839,2]
[404400340,1770106244768,-1000.0,0.00017839,2]
[404400341,1770106244777,-1000.0,0.00017839,2]
[404400342,1770106244786,-200.0,0.00017855,2]
[404400343,1770106244795,-200.0,0.00017856,2]
[404400344,1770106244804,-1000.0,0.00017857,2]
[404400345,1770106244815,-1000.0,0.00017858,2]
[404400346,1770106244824,-660499.5014014,0.00017859,2]
[404400347,1770106244833,-1000.0,0.00017861,2]
[404400348,1770106244843,-25000.0,0.00017865,3]
[404400349,1770106244852,-1000.0,0.00017867,2]
[404400350,1770106244861,-25000.0,0.00017874,3]
[404400351,1770106244871,-157.95285948,0.00017874,2]
[404400352,1770106244883,-150.0,0.00017881,2]
[404400353,1770106244895,-150.0,0.00017881,2]
[404400354,1770106244905,-25000.0,0.00017882,3]
[404400355,1770106244914,-150.0,0.00017886,2]
[404400356,1770106244924,-25000.0,0.00017891,3]
[404400357,1770106244933,-1000.0,0.00017897,2]
[404400358,1770106244942,-174.61919141,0.00017899,3]
[404400359,1770106244952,-181.08010149,0.00017899,3]
[404400360,1770106244962,-187.78006525,0.00017899,3]
[404400361,1770106244971,-194.72792766,0.00017899,3]
[404400362,1770106244980,-201.93286099,0.00017899,3]
[404400363,1770106244989,-209.40437684,0.00017899,3]
[404400364,1770106244998,-500.0,0.00017899,3]
[404400365,1770106245007,-721.12765535,0.00017899,3]
[404400366,1770106245016,-217.15233878,0.00017899,3]
[404400367,1770106245025,-747.8093786,0.00017899,3]
[404400368,1770106245034,-500.0,0.00017899,3]
[404400369,1770106245043,-225.18697532,0.00017899,3]
[404400370,1770106245052,-775.47832561,0.00017899,3]
[404400371,1770106245063,-500.0,0.00017899,3]
[404400372,1770106245072,-233.51889341,0.00017899,3]
[404400373,1770106245082,-151.0,0.00017899,3]
[404400374,1770106245091,-804.17102365,0.00017899,3]
[404400375,1770106245100,-500.0,0.00017899,3]
[404400376,1770106245109,-151.0,0.00017899,3]
[404400377,1770106245118,-833.92535153,0.00017899,3]
[404400378,1770106245127,-500.0,0.00017899,3]
[404400379,1770106245136,-242.15909246,0.00017899,3]
[404400380,1770106245145,-151.0,0.00017899,3]
[404400381,1770106245154,-864.78058953,0.00017899,3]
[404400382,1770106245163,-500.0,0.00017899,3]
[404400383,1770106245173,-896.77747135,0.00017899,3]
[404400384,1770106245182,-500.0,0.00017899,3]
[404400385,1770106245190,-251.11897888,0.00017899,3]
[404400386,1770106245199,-151.0,0.00017899,3]
[404400387,1770106245208,-929.95823779,0.00017899,3]
[404400388,1770106245218,-500.0,0.00017899,3]
[404400389,1770106245227,-260.4103811,0.00017899,3]
[404400390,1770106245237,-151.0,0.00017899,3]
[404400391,1770106245246,-964.36669259,0.00017899,3]
[404400392,1770106245255,-500.0,0.00017899,3]
[404400393,1770106245264,-270.0455652,0.00017899,3]
[404400394,1770106245274,-151.0,0.00017899,3]
[404400395,1770106245283,-1000.04826021,0.00017899,3]
[404400396,1770106245293,-500.0,0.00017899,3]
[404400397,1770106245302,-280.03725112,0.00017899,3]
[404400398,1770106245311,-290.39862941,0.00017899,3]
[404400399,1770106245321,-1037.05004584,0.00017899,3]
[404400400,1770106245331,-500.0,0.00017899,3]
[404400401,1770106245340,-151.0,0.00017899,3]
[404400402,1770106245349,-301.1433787,0.00017899,3]
[404400403,1770106245359,-151.0,0.00017899,3]
[404400404,1770106245368,-151.0,0.00017899,3]
[404400405,1770106245377,-151.0,0.00017899,3]
[404400406,1770106245387,-151.0,0.00017899,3]
[404400407,1770106245397,-500.0,0.00017899,3]
[404400408,1770106245406,-500.0,0.00017899,3]
[404400409,1770106245416,-578.20924308,0.00017899,3]
[404400410,1770106245425,-500.0,0.00017899,3]
[404400411,1770106245435,-599.60298507,0.00017899,3]
[404400412,1770106245444,-500.0,0.00017899,3]
[404400413,1770106245454,-621.78829552,0.00017899,3]
[404400414,1770106245465,-644.79446246,0.00017899,3]
[404400415,1770106245475,-500.0,0.00017899,3]
[404400416,1770106245485,-668.65185757,0.00017899,3]
[404400417,1770106245494,-500.0,0.00017899,3]
[404400418,1770106245504,-693.3919763,0.00017899,3]
[404400419,1770106245514,-500.0,0.00017899,3]
[404400420,1770106245523,-219.93777178,0.00017899,3]
[404400421,1770106245532,-500.0,0.00017899,3]
[404400422,1770106245544,-500.0,0.00017899,3]
[404400423,1770106245555,-500.0,0.00017899,3]
[404400424,1770106245565,-500.0,0.00017899,3]
[404400425,1770106245575,-500.0,0.00017899,3]
[404400426,1770106245584,-500.0,0.00017899,3]
[404400427,1770106245594,-500.0,0.00017899,3]
[404400428,1770106245603,-500.0,0.00017899,3]
[404400429,1770106245613,-500.0,0.00017899,3]
[404400430,1770106245622,-500.0,0.00017899,3]
[404400431,1770106245631,-500.0,0.00017899,3]
[404400432,1770106245641,-500.0,0.00017899,3]
[404400433,1770106245651,-500.0,0.00017899,3]
[404400434,1770106245660,-500.0,0.00017899,3]
[404400435,1770106245669,-500.0,0.00017899,3]
[404400436,1770106245679,-209.40437684,0.00017899,3]
[404400437,1770106245688,-217.15233878,0.00017899,3]
[404400438,1770106245698,-225.18697532,0.00017899,3]
[404400439,1770106245707,-233.51889341,0.00017899,3]
[404400440,1770106245717,-242.15909246,0.00017899,3]
[404400441,1770106245726,-251.11897888,0.00017899,3]
[404400442,1770106245735,-260.4103811,0.00017899,3]
[404400443,1770106245745,-270.0455652,0.00017899,3]
[404400444,1770106245754,-280.03725112,0.00017899,3]
[404400445,1770106245763,-290.39862941,0.00017899,3]
[404400446,1770106245772,-301.1433787,0.00017899,3]
[404400447,1770106245781,-322.6107,0.00017899,3]
[404400448,1770106245791,-334.5472959,0.00017899,3]
[404400449,1770106245800,-346.92554585,0.00017899,3]
[404400450,1770106245810,-359.76179104,0.00017899,3]
[404400451,1770106245820,-373.07297731,0.00017899,3]
[404400453,1770106245831,-386.87667747,0.00017899,3]
[404400454,1770106245840,-401.19111454,0.00017899,3]
[404400455,1770106245850,-416.03518578,0.00017899,3]
[404400456,1770106245859,-431.42848765,0.00017899,3]
[404400457,1770106245869,-447.3913417,0.00017899,3]
[404400458,1770106245878,-463.94482134,0.00017899,3]
[404400459,1770106245888,-481.11077973,0.00017899,3]
[404400460,1770106245897,-498.91187858,0.00017899,3]
[404400461,1770106245907,-517.37161808,0.00017899,3]
[404400462,1770106245916,-536.51436795,0.00017899,3]
[404400463,1770106245926,-556.36539957,0.00017899,3]
[404400464,1770106245936,-576.95091935,0.00017899,3]
[404400465,1770106245945,-209.2300776,0.00017899,3]
[404400466,1770106245955,-500.0,0.000179,2]
[404400467,1770106245965,-160.0,0.000179,3]
[404400468,1770106245974,-25000.0,0.000179,3]
[404400470,1770106245984,-183.18333192,0.000179,2]
[404400472,1770106245993,-23106.24832845,0.000179,3]
[404400473,1770106246003,-6042.35870632,0.000179,2]
[404400474,1770106246013,-2548.66310557,0.000179,2]
[404400475,1770106246022,-500.0,0.000179,2]
[404400476,1770106246032,-500.0,0.000179,2]
[404400477,1770106246042,-500.0,0.000179,2]
[404400478,1770106246052,-500.0,0.000179,2]
[404400479,1770106246063,-500.0,0.000179,2]
[404400480,1770106246073,-500.0,0.000179,2]
[404400481,1770106246083,-500.0,0.000179,2]
[404400482,1770106246092,-500.0,0.000179,2]
[404400483,1770106246102,-500.0,0.000179,2]
[404400484,1770106246111,-500.0,0.000179,2]
[404400485,1770106246120,-500.0,0.000179,2]
[404400486,1770106246130,-500.0,0.000179,2]
[404400487,1770106246139,-500.0,0.000179,2]
[404400488,1770106246149,-500.0,0.000179,2]
[404400489,1770106246159,-500.0,0.000179,2]
[404400490,1770106246169,-500.0,0.000179,2]
[404400491,1770106246179,-500.0,0.000179,2]
[404400492,1770106246188,-500.0,0.000179,2]
[404400493,1770106246198,-500.0,0.000179,2]
[404400494,1770106246208,-500.0,0.000179,2]
[404400495,1770106246218,-500.0,0.000179,2]
[404400496,1770106246228,-500.0,0.000179,2]
[404400497,1770106246238,-500.0,0.000179,2]
[404400498,1770106246247,-500.0,0.000179,2]
[404400499,1770106246258,-500.0,0.000179,2]
[404400500,1770106246267,-177.67175563,0.000179,2]
[404400501,1770106246276,-1000.0,0.00017904,2]
[404400502,1770106246286,-361.84102799,0.00017912,2]
[404400503,1770106246296,-1000.0,0.00017913,2]
[404400504,1770106246306,-1000.0,0.00017915,2]
[404400505,1770106246317,-500.0,0.00017918,2]
[404400506,1770106246327,-150.0,0.00017923,2]
[404400507,1770106246336,-150.0,0.00017924,2]
[404400508,1770106246346,-341.83713414,0.00017924,2]
[404400509,1770106246356,-150.0,0.00017926,2]
[404400510,1770106246365,-150.0,0.00017944,2]
[404400511,1770106246374,-1000.0,0.00017949,2]
[404400512,1770106246384,-1000.0,0.00017959,2]
[404400513,1770106246393,-1000.0,0.00017964,2]
[404400514,1770106246403,-1000.0,0.00017969,2]
[404400515,1770106246412,-5162.3364479,0.00017979,2]
[404400516,1770106246421,-500.87084133,0.00017982,2]
[404400517,1770106246431,-1000.0,0.00017986,2]
[404400518,1770106246440,-150.0,0.00017988,2]
[404400519,1770106246450,-1000.0,0.0001799,2]
[404400520,1770106246460,-3931.0726412,0.00017995,2]
[404400521,1770106246475,-6630.8814758,0.00017995,2]
[404400522,1770106246484,-151.0,0.00017997,2]
[404400523,1770106246493,-1000.0,0.00017998,2]
[404400524,1770106246504,-155.0,0.00017999,2]
[404400525,1770106246514,-300.0,0.00017999,2]
[404400526,1770106246523,-300.0,0.00017999,2]
[404400527,1770106246532,-300.0,0.00017999,2]
[404400528,1770106246544,-300.0,0.00017999,2]
[404400529,1770106246553,-1947237.03527242,0.00018,2]
[404400558,1770106246838,-774.6985844,0.00018,2]
[404400575,1770106247251,-6661.21012793,0.00018,2]
[404400576,1770106247534,112.20709786,8.068e-05,2]
[404400577,1770106247559,5000.01,8.068e-05,2]
[404400578,1770106247582,5000.01,8.068e-05,2]
[404400579,1770106247607,437.57290214,8.068e-05,2]
[404400580,1770106248078,-191.0,8.837e-05,2]
[404400581,1770106248088,-122.5358249,0.00017358,2]
[404400582,1770106264051,10000.01,8.43e-05,2]
[404400583,1770106264079,10000.01,8.43e-05,2]
[404400584,1770106264105,10000.01,8.43e-05,2]
[404400585,1770106264131,10000.01,8.43e-05,2]
[404400586,1770106264157,10000.01,8.43e-05,2]
[404400587,1770106264181,10000.01,8.43e-05,2]
[404400588,1770106264205,10000.01,8.43e-05,2]
[404400589,1770106264229,10000.01,8.43e-05,2]
[404400590,1770106264253,9306.4531,8.43e-05,2]
[404400594,1770106299767,500.0,8.529e-05,2]
[404400595,1770106299805,207.53962566,8.529e-05,2]
[404400596,1770106299853,500.0,8.529e-05,2]
[404400597,1770106299902,500.0,8.529e-05,2]
[404400598,1770106299947,360.0856781,8.529e-05,2]
[404400599,1770106312178,181.10010491,8.529e-05,2]
[404400601,1770106366521,2751.28459133,8.43e-05,2]
[404400602,1770106366554,5000.01,8.43e-05,2]
[404400603,1770106366588,5000.01,8.43e-05,2]
[404400604,1770106366621,5000.01,8.43e-05,2]
[404400605,1770106366652,5000.01,8.43e-05,2]
[404400606,1770106366684,5000.01,8.43e-05,2]
[404400607,1770106366716,5000.01,8.43e-05,2]
[404400608,1770106366749,5000.01,8.43e-05,2]
[404400609,1770106366780,5000.01,8.43e-05,2]
[404400610,1770106366809,5000.01,8.43e-05,2]
[404400611,1770106377233,-3333.5442975,8.43e-05,2]
[404400612,1770106377365,-5000.01,8.43e-05,2]
[404400613,1770106377511,-5000.01,8.43e-05,2]
[404400614,1770106377652,-5000.01,8.43e-05,2]
[404400615,1770106377868,-5000.01,8.43e-05,2]
[404400616,1770106378002,-5000.01,8.43e-05,2]
[404400617,1770106378119,-5000.01,8.43e-05,2]
[404400618,1770106378231,-5000.01,8.43e-05,2]
[404400619,1770106378351,-5000.01,8.43e-05,2]
[404400624,1770106441610,300.0,8.429e-05,2]
[404400626,1770106493197,157.42653104,8.43e-05,2]
[404400627,1770106495887,150.30591603,8.43e-05,2]
[404400628,1770106501667,300.0,8.429e-05,2]
[404400629,1770106501722,1200.0,8.429e-05,2]
[404400630,1770106502170,150.0,8.429e-05,2]
[404400631,1770106502268,300.0,8.429e-05,2]
[404400640,1770106561782,300.0,8.429e-05,2]
[404400641,1770106569773,4121.603,8.33e-05,2]
[404400642,1770106582006,3020.67455293,8.33e-05,2]
[404400643,1770106582034,10000.01,8.33e-05,2]
[404400644,1770106582060,10000.01,8.33e-05,2]
[404400645,1770106582087,10000.01,8.33e-05,2]
[404400646,1770106582114,10000.01,8.33e-05,2]
[404400647,1770106582143,10000.01,8.33e-05,2]
[404400648,1770106582189,10000.01,8.33e-05,2]
[404400649,1770106582230,10000.01,8.33e-05,2]
[404400650,1770106582261,10000.01,8.33e-05,2]
[404400651,1770106582290,5000.01,8.33e-05,2]
[404400652,1770106582315,1263.33054707,8.33e-05,2]
[404400653,1770106611988,1699.10873706,8.43e-05,2]
[404400654,1770106619369,500.0,8.429e-05,2]
[404400655,1770106620254,500.0,8.429e-05,2]
[404400656,1770106620323,500.0,8.429e-05,2]
[404400657,1770106620372,240.636414,8.429e-05,2]
[404400658,1770106622675,296.93430187,8.429e-05,2]
[404400659,1770106622698,203.06569813,8.429e-05,2]
[404400660,1770106622753,186.0735036,8.429e-05,2]
[404400661,1770106622795,500.0,8.429e-05,2]
[404400662,1770106622850,276.09018762,8.429e-05,2]
[404400663,1770106622907,500.0,8.429e-05,2]
[404400664,1770106622985,500.0,8.429e-05,2]
[404400665,1770106625786,500.0,8.429e-05,2]
[404400666,1770106681631,300.0,8.429e-05,2]
[404400667,1770106682134,300.0,8.429e-05,2]
[404400668,1770106682310,150.0,8.429e-05,2]
[404400669,1770106683650,1584.78061065,8.33e-05,2]
[404400670,1770106683687,5000.01,8.33e-05,2]
[404400671,1770106683724,5000.01,8.33e-05,2]
[404400672,1770106683759,5000.01,8.33e-05,2]
[404400673,1770106683793,5000.01,8.33e-05,2]
[404400674,1770106683839,5000.01,8.33e-05,2]
[404400675,1770106683875,5000.01,8.33e-05,2]
[404400676,1770106683911,10000.01,8.33e-05,2]
[404400677,1770106683946,10000.01,8.33e-05,2]
[404400678,1770106683982,10000.01,8.33e-05,2]
[404400679,1770106684014,5000.01,8.33e-05,2]
[404400680,1770106684352,10000.01,8.33e-05,2]
[404400681,1770106684388,10000.01,8.33e-05,2]
[404400682,1770106684422,10000.01,8.33e-05,2]
[404400683,1770106684457,10000.01,8.33e-05,2]
[404400684,1770106684492,10000.01,8.33e-05,2]
[404400685,1770106684526,10000.01,8.33e-05,2]
[404400686,1770106684557,5000.01,8.33e-05,2]
[404400687,1770106705947,1181.767065,8.178e-05,2]
[404400688,1770106741607,300.0,8.329e-05,2]
[404400689,1770106744675,1184.03311277,8.33e-05,2]
[404400691,1770106801700,261.0,8.329e-05,2]
[404400692,1770106801827,1200.0,8.329e-05,2]
[404400693,1770106803390,220.0,8.33e-05,2]
[404400694,1770106836534,500.0,8.329e-05,2]
[404400695,1770106836780,218.4454898,8.329e-05,2]
[404400696,1770106837072,500.0,8.329e-05,2]
[404400697,1770106838755,500.0,8.329e-05,2]
[404400698,1770106838827,116.53139743,8.329e-05,2]
[404400699,1770106838861,383.46860257,8.329e-05,2]
[404400700,1770106838935,500.0,8.329e-05,2]
[404400701,1770106839009,500.0,8.329e-05,2]
[404400702,1770106839071,500.0,8.329e-05,2]
[404400703,1770106839179,248.1214085,8.329e-05,2]
[404400704,1770106857409,1132.73915804,8.33e-05,2]
[404400705,1770106861742,150.0,8.329e-05,2]
[404400706,1770106862267,279.0,8.329e-05,2]